[Event "*** Titled Tuesday Blitz"]
[Site "Chess.com"]
[Date "2020.05.05"]
[Round "5"]
[White "Mesa_1"]
[Black "tgpgoat"]
[Result "0-1"]
[WhiteElo "2433"]
[BlackElo "2100"]
[TimeControl "180+1"]
[EndTime "10:58:39 PDT"]
[Termination "tgpgoat won by resignation"]

1. Nf3 {[%clk 0:03:00.9]} 1... Nf6 {[%clk 0:02:59.9]} 2. c4 {[%clk 0:03:00.6]}
2... g6 {[%clk 0:02:58.7]} 3. Nc3 {[%clk 0:03:00.4]} 3... Bg7 {[%clk 0:02:58.7]}
4. e4 {[%clk 0:03:00]} 4... d6 {[%clk 0:02:57.8]} 5. d4 {[%clk 0:03:00.2]} 5...
O-O {[%clk 0:02:57.9]} 6. Be2 {[%clk 0:03:00.6]} 6... c5 {[%clk 0:02:57.4]} 7.
O-O {[%clk 0:02:56.5]} 7... cxd4 {[%clk 0:02:57.2]} 8. Nxd4 {[%clk 0:02:57.4]}
8... Nc6 {[%clk 0:02:57.7]} 9. Be3 {[%clk 0:02:56.5]} 9... Bd7 {[%clk
0:02:53.8]} 10. h3 {[%clk 0:02:50]} 10... Rc8 {[%clk 0:02:53.4]} 11. Nf3 {[%clk
0:02:38.5]} 11... a6 {[%clk 0:02:30.8]} 12. Rc1 {[%clk 0:02:21.7]} 12... Ne8
{[%clk 0:02:28.8]} 13. Nd5 {[%clk 0:02:16.8]} 13... Nc7 {[%clk 0:02:23.1]} 14.
Bb6 {[%clk 0:02:13.7]} 14... Ne5 {[%clk 0:02:18]} 15. Nxe5 {[%clk 0:02:06.1]}
15... Bxe5 {[%clk 0:02:18.9]} 16. Qd2 {[%clk 0:02:01.7]} 16... Bc6 {[%clk
0:02:14.1]} 17. Nxc7 {[%clk 0:01:34.1]} 17... Rxc7 {[%clk 0:02:15]} 18. f4
{[%clk 0:01:29.9]} 18... Bg7 {[%clk 0:02:12.4]} 19. Bf3 {[%clk 0:01:19.1]} 19...
Qd7 {[%clk 0:02:06.1]} 20. Bxc7 {[%clk 0:01:17.4]} 20... Qxc7 {[%clk 0:02:07]}
21. b3 {[%clk 0:01:15.2]} 21... Qb6+ {[%clk 0:02:01.6]} 22. Kh1 {[%clk
0:01:14.4]} 22... Bd4 {[%clk 0:01:57.1]} 23. Rfe1 {[%clk 0:01:02.9]} 23... Bg7
{[%clk 0:01:50.6]} 24. Qd3 {[%clk 0:01:00.2]} 24... Qa5 {[%clk 0:01:46.5]} 25.
Re2 {[%clk 0:00:51.9]} 25... b5 {[%clk 0:01:45.1]} 26. e5 {[%clk 0:00:49.7]}
26... bxc4 {[%clk 0:01:42.6]} 27. bxc4 {[%clk 0:00:37.6]} 27... Bxf3 {[%clk
0:01:40.6]} 28. Qxf3 {[%clk 0:00:38.5]} 28... dxe5 {[%clk 0:01:40.7]} 29. fxe5
{[%clk 0:00:36.5]} 29... Bxe5 {[%clk 0:01:40.2]} 30. c5 {[%clk 0:00:27.6]} 30...
Qc7 {[%clk 0:01:39.2]} 31. c6 {[%clk 0:00:25.1]} 31... Rb8 {[%clk 0:01:36.8]}
32. Rf2 {[%clk 0:00:19.1]} 32... Bf6 {[%clk 0:01:33.7]} 33. Qd5 {[%clk
0:00:16.5]} 33... Rc8 {[%clk 0:01:31.4]} 34. Rfc2 {[%clk 0:00:16]} 34... Rd8
{[%clk 0:01:29]} 35. Qf3 {[%clk 0:00:15.5]} 35... Rc8 {[%clk 0:01:22.5]} 36. Rd1
{[%clk 0:00:15.3]} 36... Be5 {[%clk 0:01:14.3]} 37. Rd7 {[%clk 0:00:14.2]} 37...
Qa5 {[%clk 0:01:11.4]} 38. Qd1 {[%clk 0:00:12.4]} 38... Bd6 {[%clk 0:01:07.5]}
39. Rxd6 {[%clk 0:00:08.7]} 39... exd6 {[%clk 0:01:06.7]} 40. Qxd6 {[%clk
0:00:09]} 40... Qc7 {[%clk 0:00:45.4]} 41. Qd4 {[%clk 0:00:07.2]} 41... Rd8
{[%clk 0:00:43.8]} 42. Qa1 {[%clk 0:00:06.6]} 42... Rd6 {[%clk 0:00:39.5]} 43.
Qc1 {[%clk 0:00:06.4]} 43... a5 {[%clk 0:00:38.3]} 44. Rc5 {[%clk 0:00:06.6]}
44... a4 {[%clk 0:00:37.3]} 45. Qc2 {[%clk 0:00:07]} 45... Re6 {[%clk
0:00:35.9]} 46. Qd2 {[%clk 0:00:06.5]} 46... Rxc6 {[%clk 0:00:34.2]} 47. Rxc6
{[%clk 0:00:05.8]} 47... Qxc6 {[%clk 0:00:35.1]} 48. Qd8+ {[%clk 0:00:06.2]}
48... Kg7 {[%clk 0:00:34.7]} 49. Qd4+ {[%clk 0:00:06.8]} 49... Kf8 {[%clk
0:00:32.2]} 50. Qb4+ {[%clk 0:00:06.3]} 50... Kg8 {[%clk 0:00:30.8]} 51. Qb8+
{[%clk 0:00:06.8]} 51... Kg7 {[%clk 0:00:31.1]} 52. Qe5+ {[%clk 0:00:07.4]}
52... Qf6 {[%clk 0:00:31.7]} 53. Qa5 {[%clk 0:00:06.3]} 53... Qa1+ {[%clk
0:00:31.1]} 54. Kh2 {[%clk 0:00:06.8]} 54... Qxa2 {[%clk 0:00:32]} 55. Qe5+
{[%clk 0:00:07]} 55... f6 {[%clk 0:00:28.4]} 56. Qa5 {[%clk 0:00:07]} 56... Qb3
{[%clk 0:00:25.7]} 57. Qc7+ {[%clk 0:00:06.8]} 57... Qf7 {[%clk 0:00:24.7]} 58.
Qa5 {[%clk 0:00:07.1]} 58... Qd7 {[%clk 0:00:23.3]} 59. Qa8 {[%clk 0:00:05.1]}
59... Qd6+ {[%clk 0:00:21.5]} 60. Kh1 {[%clk 0:00:05.3]} 60... a3 {[%clk
0:00:21.3]} 61. Qb7+ {[%clk 0:00:05.3]} 61... Kf8 {[%clk 0:00:19.8]} 62. Qa8+
{[%clk 0:00:05.3]} 62... Kf7 {[%clk 0:00:19.6]} 63. Qa7+ {[%clk 0:00:05.6]}
63... Qe7 {[%clk 0:00:19.9]} 64. Qa4 {[%clk 0:00:05]} 64... Qe1+ {[%clk
0:00:19.5]} 65. Kh2 {[%clk 0:00:05.1]} 65... Qe5+ {[%clk 0:00:20.4]} 66. Kh1
{[%clk 0:00:05.5]} 66... Qa1+ {[%clk 0:00:20.3]} 67. Kh2 {[%clk 0:00:05.5]}
67... Qe5+ {[%clk 0:00:21.2]} 68. Kh1 {[%clk 0:00:05.3]} 68... Qb2 {[%clk
0:00:22.1]} 69. Qd7+ {[%clk 0:00:04.5]} 69... Kf8 {[%clk 0:00:21.2]} 70. Qd8+
{[%clk 0:00:04.6]} 70... Kg7 {[%clk 0:00:20.9]} 71. Qd7+ {[%clk 0:00:05.5]}
71... Kh6 {[%clk 0:00:20.6]} 72. Qe8 {[%clk 0:00:03]} 72... Qa1+ {[%clk
0:00:16.9]} 73. Kh2 {[%clk 0:00:02.9]} 73... Qe5+ {[%clk 0:00:17]} 0-1

[Event "*** Titled Tuesday Blitz"]
[Site "Chess.com"]
[Date "2020.05.05"]
[Round "5"]
[White "Vamostodorecto"]
[Black "Vusatiuk_Vladimir"]
[Result "1/2-1/2"]
[WhiteElo "2518"]
[BlackElo "2334"]
[TimeControl "180+1"]
[EndTime "10:58:43 PDT"]
[Termination "Game drawn - insufficient material"]

1. d4 {[%clk 0:03:00.9]} 1... Nf6 {[%clk 0:02:59.3]} 2. c4 {[%clk 0:03:00.7]}
2... g6 {[%clk 0:02:59.7]} 3. Nc3 {[%clk 0:03:01.3]} 3... d5 {[%clk 0:03:00]} 4.
g4 {[%clk 0:03:00.8]} 4... Bxg4 {[%clk 0:02:57.9]} 5. Qb3 {[%clk 0:03:00]} 5...
Bc8 {[%clk 0:02:53]} 6. cxd5 {[%clk 0:02:58.9]} 6... c6 {[%clk 0:02:52.6]} 7. e4
{[%clk 0:02:55.4]} 7... cxd5 {[%clk 0:02:50.9]} 8. e5 {[%clk 0:02:53.3]} 8...
Ne4 {[%clk 0:02:47.2]} 9. Qxd5 {[%clk 0:02:12.6]} 9... Nxc3 {[%clk 0:02:32.3]}
10. Qxd8+ {[%clk 0:02:11.3]} 10... Kxd8 {[%clk 0:02:33.2]} 11. bxc3 {[%clk
0:02:11.5]} 11... e6 {[%clk 0:02:30.6]} 12. Bg2 {[%clk 0:02:08.4]} 12... Nc6
{[%clk 0:02:29.7]} 13. Ne2 {[%clk 0:02:06.9]} 13... Kc7 {[%clk 0:02:29]} 14. Bg5
{[%clk 0:01:53.2]} 14... Be7 {[%clk 0:02:24.9]} 15. h4 {[%clk 0:01:52.5]} 15...
h6 {[%clk 0:02:20.1]} 16. Be3 {[%clk 0:01:51.2]} 16... b6 {[%clk 0:02:16.9]} 17.
h5 {[%clk 0:01:49.2]} 17... g5 {[%clk 0:02:13]} 18. f4 {[%clk 0:01:37.8]} 18...
Bb7 {[%clk 0:02:10.9]} 19. O-O {[%clk 0:01:20.6]} 19... Raf8 {[%clk 0:02:05.8]}
20. f5 {[%clk 0:01:19.8]} 20... f6 {[%clk 0:01:58.4]} 21. fxe6 {[%clk
0:01:07.6]} 21... fxe5 {[%clk 0:01:57.4]} 22. d5 {[%clk 0:01:08.2]} 22... Na5
{[%clk 0:01:55.1]} 23. Ng3 {[%clk 0:01:02.6]} 23... Nc4 {[%clk 0:01:53.4]} 24.
Bf2 {[%clk 0:00:43.4]} 24... Rf4 {[%clk 0:01:49]} 25. Rad1 {[%clk 0:00:35.1]}
25... Rhf8 {[%clk 0:01:46.4]} 26. Ne4 {[%clk 0:00:32.9]} 26... Nd6 {[%clk
0:01:25.9]} 27. Nxd6 {[%clk 0:00:32]} 27... Bxd6 {[%clk 0:01:21.1]} 28. Bg3
{[%clk 0:00:30]} 28... Rxf1+ {[%clk 0:00:55]} 29. Rxf1 {[%clk 0:00:30.9]} 29...
Bc5+ {[%clk 0:00:47.7]} 30. Kh2 {[%clk 0:00:30.9]} 30... Rxf1 {[%clk 0:00:47.9]}
31. Bxf1 {[%clk 0:00:31.8]} 31... Bxd5 {[%clk 0:00:46.9]} 32. Bxe5+ {[%clk
0:00:31.7]} 32... Kd8 {[%clk 0:00:46.2]} 33. c4 {[%clk 0:00:26.9]} 33... Bxe6
{[%clk 0:00:45.5]} 34. Bg7 {[%clk 0:00:27.6]} 34... Bg4 {[%clk 0:00:34.7]} 35.
Bxh6 {[%clk 0:00:25.1]} 35... Be7 {[%clk 0:00:32.7]} 36. Kg3 {[%clk 0:00:18]}
36... Bxh5 {[%clk 0:00:32.8]} 37. Bh3 {[%clk 0:00:18]} 37... Bf7 {[%clk
0:00:32]} 38. Bf1 {[%clk 0:00:15.8]} 38... Be6 {[%clk 0:00:28.4]} 39. Kf3 {[%clk
0:00:15.6]} 39... Kd7 {[%clk 0:00:27.4]} 40. Ke4 {[%clk 0:00:15.8]} 40... Bf6
{[%clk 0:00:26.6]} 41. Be2 {[%clk 0:00:13.6]} 41... Kc6 {[%clk 0:00:25.5]} 42.
Bf8 {[%clk 0:00:13.1]} 42... Bc3 {[%clk 0:00:15.2]} 43. Kd3 {[%clk 0:00:11.7]}
43... Bb2 {[%clk 0:00:14.6]} 44. Ke4 {[%clk 0:00:12]} 44... g4 {[%clk
0:00:13.2]} 45. Kf4 {[%clk 0:00:11.8]} 45... Bc1+ {[%clk 0:00:13.3]} 46. Kg3
{[%clk 0:00:12]} 46... Be3 {[%clk 0:00:13.5]} 47. Bxg4 {[%clk 0:00:11.5]} 47...
Bxc4 {[%clk 0:00:13.5]} 48. Bf3+ {[%clk 0:00:11]} 48... Bd5 {[%clk 0:00:14]} 49.
Kg4 {[%clk 0:00:08.4]} 49... Bc5 {[%clk 0:00:12.6]} 50. Bg7 {[%clk 0:00:07.5]}
50... a5 {[%clk 0:00:09.8]} 51. Kf4 {[%clk 0:00:07.3]} 51... a4 {[%clk
0:00:08.9]} 52. Kg3 {[%clk 0:00:04.9]} 52... b5 {[%clk 0:00:08.7]} 53. Kg2
{[%clk 0:00:04.3]} 53... b4 {[%clk 0:00:08.4]} 54. Bxd5+ {[%clk 0:00:04.5]}
54... Kxd5 {[%clk 0:00:08.6]} 55. Kf3 {[%clk 0:00:05.4]} 55... Kc4 {[%clk
0:00:09]} 56. Ke2 {[%clk 0:00:05.5]} 56... Bd4 {[%clk 0:00:09.2]} 57. Bf8 {[%clk
0:00:04.2]} 57... Bc5 {[%clk 0:00:07.6]} 58. Bg7 {[%clk 0:00:03.4]} 58... b3
{[%clk 0:00:03.9]} 59. axb3+ {[%clk 0:00:04.3]} 59... Kxb3 {[%clk 0:00:02.2]}
60. Kd2 {[%clk 0:00:04.6]} 60... Bb4+ {[%clk 0:00:03.1]} 61. Kc1 {[%clk
0:00:04.7]} 61... Ba3+ {[%clk 0:00:03.3]} 62. Kb1 {[%clk 0:00:04.9]} 62... Bb4
{[%clk 0:00:03.9]} 63. Ka1 {[%clk 0:00:04.6]} 63... a3 {[%clk 0:00:04.4]} 64.
Bf6 {[%clk 0:00:04.7]} 64... a2 {[%clk 0:00:04.3]} 65. Bg7 {[%clk 0:00:04.8]}
65... Bd2 {[%clk 0:00:04.4]} 66. Bf6 {[%clk 0:00:04.8]} 66... Be3 {[%clk
0:00:04.1]} 67. Bg7 {[%clk 0:00:05]} 67... Bf4 {[%clk 0:00:04.6]} 68. Bf6 {[%clk
0:00:05.2]} 68... Bg5 {[%clk 0:00:05.5]} 69. Bxg5 {[%clk 0:00:04.7]} 69... Ka3
{[%clk 0:00:06.4]} 70. Bf6 {[%clk 0:00:04.8]} 70... Kb3 {[%clk 0:00:07.3]} 71.
Bb2 {[%clk 0:00:05.6]} 71... Kc2 {[%clk 0:00:07.2]} 72. Kxa2 {[%clk 0:00:06.5]}
1/2-1/2

[Event "*** Titled Tuesday Blitz"]
[Site "Chess.com"]
[Date "2020.05.05"]
[Round "5"]
[White "XiaoKangZhong"]
[Black "Herracek"]
[Result "0-1"]
[WhiteElo "2317"]
[BlackElo "2599"]
[TimeControl "180+1"]
[EndTime "10:58:46 PDT"]
[Termination "Herracek won by checkmate"]

1. e4 {[%clk 0:02:59.3]} 1... c5 {[%clk 0:03:00.5]} 2. c3 {[%clk 0:02:58.6]}
2... Nf6 {[%clk 0:02:59.5]} 3. e5 {[%clk 0:02:58.4]} 3... Nd5 {[%clk 0:03:00.1]}
4. d4 {[%clk 0:02:59.3]} 4... cxd4 {[%clk 0:03:00.7]} 5. cxd4 {[%clk 0:03:00.2]}
5... d6 {[%clk 0:03:00.5]} 6. Nf3 {[%clk 0:03:00.2]} 6... Nc6 {[%clk 0:03:00.3]}
7. Bc4 {[%clk 0:02:58.9]} 7... Be6 {[%clk 0:03:00.5]} 8. O-O {[%clk 0:02:09.8]}
8... g6 {[%clk 0:02:59.3]} 9. Ng5 {[%clk 0:02:05.5]} 9... dxe5 {[%clk
0:02:58.3]} 10. Nxe6 {[%clk 0:02:04.7]} 10... fxe6 {[%clk 0:02:59.2]} 11. dxe5
{[%clk 0:02:01]} 11... Bg7 {[%clk 0:02:59.6]} 12. Nc3 {[%clk 0:01:48]} 12...
Nxc3 {[%clk 0:02:48.6]} 13. bxc3 {[%clk 0:01:48.9]} 13... Qxd1 {[%clk
0:02:38.5]} 14. Rxd1 {[%clk 0:01:49.8]} 14... Kf7 {[%clk 0:02:38.8]} 15. f4
{[%clk 0:01:48]} 15... Rhd8 {[%clk 0:02:37.3]} 16. Be3 {[%clk 0:01:47.1]} 16...
g5 {[%clk 0:02:34.6]} 17. g3 {[%clk 0:01:46.4]} 17... gxf4 {[%clk 0:02:34.2]}
18. gxf4 {[%clk 0:01:47.3]} 18... Rac8 {[%clk 0:02:29.7]} 19. f5 {[%clk
0:01:33.9]} 19... Rb8 {[%clk 0:02:10.7]} 20. fxe6+ {[%clk 0:01:05]} 20... Kg8
{[%clk 0:02:08]} 21. Rd7 {[%clk 0:00:59.9]} 21... Nxe5 {[%clk 0:02:00.7]} 22.
Rxd8+ {[%clk 0:00:31.5]} 22... Rxd8 {[%clk 0:02:01.6]} 23. Bb3 {[%clk
0:00:31.9]} 23... b6 {[%clk 0:01:52.7]} 24. Rc1 {[%clk 0:00:30.5]} 24... Rd3
{[%clk 0:01:50.7]} 25. Bg5 {[%clk 0:00:27.5]} 25... Nf3+ {[%clk 0:01:50.4]} 26.
Kf2 {[%clk 0:00:24.6]} 26... Nxg5 {[%clk 0:01:51.3]} 27. Ke2 {[%clk 0:00:24.7]}
27... Rd6 {[%clk 0:01:42]} 28. c4 {[%clk 0:00:18.1]} 28... Ne4 {[%clk
0:01:41.7]} 29. c5 {[%clk 0:00:17.3]} 29... Nxc5 {[%clk 0:01:41.5]} 30. Bc4
{[%clk 0:00:17.6]} 30... Nxe6 {[%clk 0:01:35.1]} 31. Rf1 {[%clk 0:00:17.9]}
31... Bf6 {[%clk 0:01:34.2]} 32. Kf3 {[%clk 0:00:16.6]} 32... Kf8 {[%clk
0:01:34.4]} 33. Re1 {[%clk 0:00:17.5]} 33... Nd4+ {[%clk 0:01:34.3]} 34. Kf4
{[%clk 0:00:17.1]} 34... e5+ {[%clk 0:01:32.2]} 35. Ke4 {[%clk 0:00:17]} 35...
Nc2 {[%clk 0:01:28]} 36. Rc1 {[%clk 0:00:13.8]} 36... Rd4+ {[%clk 0:01:27.2]}
37. Kf5 {[%clk 0:00:14.3]} 37... Rf4+ {[%clk 0:01:25.8]} 38. Ke6 {[%clk
0:00:14.6]} 38... Nd4+ {[%clk 0:01:26]} 39. Kd5 {[%clk 0:00:13.4]} 39... Nf5
{[%clk 0:01:21.5]} 40. Re1 {[%clk 0:00:12.3]} 40... Ne7+ {[%clk 0:01:18.4]} 41.
Ke6 {[%clk 0:00:12.6]} 41... Rxc4 {[%clk 0:01:13.2]} 42. Kxf6 {[%clk 0:00:12.5]}
42... e4 {[%clk 0:01:13.6]} 43. Ke5 {[%clk 0:00:12]} 43... Ra4 {[%clk
0:01:10.9]} 44. Re2 {[%clk 0:00:11.7]} 44... Kf7 {[%clk 0:01:09.8]} 45. Rf2+
{[%clk 0:00:11.7]} 45... Ke8 {[%clk 0:01:09.2]} 46. Ke6 {[%clk 0:00:11.2]} 46...
Rc4 {[%clk 0:01:08.7]} 47. Re2 {[%clk 0:00:11.3]} 47... a5 {[%clk 0:01:05.8]}
48. Rb2 {[%clk 0:00:09.8]} 48... Rc6+ {[%clk 0:00:59.6]} 49. Ke5 {[%clk
0:00:09.8]} 49... Kd7 {[%clk 0:00:45.6]} 50. Kxe4 {[%clk 0:00:08.7]} 50... Ke6
{[%clk 0:00:45.3]} 51. Rb5 {[%clk 0:00:07.3]} 51... Nc8 {[%clk 0:00:41.9]} 52.
Kd3 {[%clk 0:00:07.6]} 52... h6 {[%clk 0:00:39.5]} 53. Rh5 {[%clk 0:00:07.6]}
53... Kd7 {[%clk 0:00:39.9]} 54. Rf5 {[%clk 0:00:07.7]} 54... Ne7 {[%clk
0:00:40.1]} 55. Rf7 {[%clk 0:00:07.3]} 55... b5 {[%clk 0:00:38.5]} 56. Rf2
{[%clk 0:00:06.8]} 56... b4 {[%clk 0:00:37.2]} 57. Re2 {[%clk 0:00:07.1]} 57...
Rc3+ {[%clk 0:00:37]} 58. Kd4 {[%clk 0:00:07.2]} 58... Nc6+ {[%clk 0:00:35.8]}
59. Kd5 {[%clk 0:00:07.3]} 59... Ne7+ {[%clk 0:00:35.9]} 60. Kd4 {[%clk
0:00:07.6]} 60... Ra3 {[%clk 0:00:36.3]} 61. Rg2 {[%clk 0:00:07.4]} 61... Nf5+
{[%clk 0:00:33]} 62. Ke5 {[%clk 0:00:07.7]} 62... Ne3 {[%clk 0:00:32.6]} 63. Re2
{[%clk 0:00:07.8]} 63... Nc4+ {[%clk 0:00:31.9]} 64. Kd4 {[%clk 0:00:08.2]}
64... Nd6 {[%clk 0:00:31.7]} 65. Kc5 {[%clk 0:00:08.3]} 65... Rc3+ {[%clk
0:00:25.8]} 66. Kd4 {[%clk 0:00:08.7]} 66... Nb5+ {[%clk 0:00:25.1]} 67. Kd5
{[%clk 0:00:08.1]} 67... Rc6 {[%clk 0:00:24]} 68. Rg2 {[%clk 0:00:07.9]} 68...
Nc3+ {[%clk 0:00:24.3]} 69. Ke5 {[%clk 0:00:07.9]} 69... Rd6 {[%clk 0:00:23.6]}
70. Rg7+ {[%clk 0:00:07.4]} 70... Kc6 {[%clk 0:00:24]} 71. Ra7 {[%clk
0:00:08.2]} 71... Rd5+ {[%clk 0:00:22.3]} 72. Ke6 {[%clk 0:00:08.3]} 72... Nxa2
{[%clk 0:00:20.6]} 73. Ra6+ {[%clk 0:00:07.4]} 73... Kb5 {[%clk 0:00:21]} 74.
Ra8 {[%clk 0:00:07.5]} 74... Nc3 {[%clk 0:00:21.5]} 75. Rh8 {[%clk 0:00:06.3]}
75... Rh5 {[%clk 0:00:21.5]} 76. Rb8+ {[%clk 0:00:03.8]} 76... Kc4 {[%clk
0:00:21.8]} 77. Kf6 {[%clk 0:00:04.5]} 77... Kb3 {[%clk 0:00:21.7]} 78. Rc8
{[%clk 0:00:05.1]} 78... Rxh2 {[%clk 0:00:22.1]} 79. Kg6 {[%clk 0:00:05.5]}
79... a4 {[%clk 0:00:22.6]} 80. Re8 {[%clk 0:00:05]} 80... a3 {[%clk 0:00:23.1]}
81. Kh7 {[%clk 0:00:04.9]} 81... a2 {[%clk 0:00:23.4]} 82. Kg6 {[%clk
0:00:04.7]} 82... a1=Q {[%clk 0:00:22.3]} 83. Kf6 {[%clk 0:00:05.6]} 83... Nd5+
{[%clk 0:00:21.9]} 84. Ke6 {[%clk 0:00:05.9]} 84... Qf6+ {[%clk 0:00:22.4]} 85.
Kxd5 {[%clk 0:00:06.1]} 85... Rd2+ {[%clk 0:00:22.9]} 86. Kc5 {[%clk 0:00:06.7]}
86... Qd6+ {[%clk 0:00:22.5]} 87. Kb5 {[%clk 0:00:07]} 87... Rd5# {[%clk
0:00:23.4]} 0-1

[Event "*** Titled Tuesday Blitz"]
[Site "Chess.com"]
[Date "2020.05.05"]
[Round "5"]
[White "BIG_Pirate"]
[Black "julinha97"]
[Result "1-0"]
[WhiteElo "2304"]
[BlackElo "2152"]
[TimeControl "180+1"]
[EndTime "10:58:48 PDT"]
[Termination "BIG_Pirate won by checkmate"]

1. Nf3 {[%clk 0:03:00.9]} 1... c5 {[%clk 0:02:58.8]} 2. c4 {[%clk 0:03:00.2]}
2... Nc6 {[%clk 0:02:57.7]} 3. Nc3 {[%clk 0:02:59.5]} 3... Nf6 {[%clk
0:02:55.8]} 4. g3 {[%clk 0:02:58.9]} 4... d5 {[%clk 0:02:49]} 5. cxd5 {[%clk
0:02:58]} 5... Nxd5 {[%clk 0:02:49.9]} 6. Bg2 {[%clk 0:02:58.5]} 6... Nc7 {[%clk
0:02:50.4]} 7. O-O {[%clk 0:02:58.2]} 7... e5 {[%clk 0:02:50.3]} 8. a3 {[%clk
0:02:58.5]} 8... f6 {[%clk 0:02:46.8]} 9. e3 {[%clk 0:02:56.5]} 9... Be6 {[%clk
0:02:46.6]} 10. d4 {[%clk 0:02:44.8]} 10... cxd4 {[%clk 0:02:45.6]} 11. exd4
{[%clk 0:02:45.7]} 11... exd4 {[%clk 0:02:45.4]} 12. Ne2 {[%clk 0:02:43]} 12...
Bc5 {[%clk 0:02:39.3]} 13. b4 {[%clk 0:02:38.1]} 13... Bb6 {[%clk 0:02:33.5]}
14. Bb2 {[%clk 0:02:38]} 14... O-O {[%clk 0:02:31.4]} 15. Nexd4 {[%clk
0:02:36.9]} 15... Nxd4 {[%clk 0:02:29.4]} 16. Nxd4 {[%clk 0:02:37.8]} 16... Bd5
{[%clk 0:02:28.6]} 17. Qg4 {[%clk 0:01:55.4]} 17... Bxg2 {[%clk 0:02:19.8]} 18.
Nf5 {[%clk 0:01:42.8]} 18... g6 {[%clk 0:02:13.9]} 19. Rfd1 {[%clk 0:01:19]}
19... Bd5 {[%clk 0:02:08.8]} 20. Rac1 {[%clk 0:01:05]} 20... Rc8 {[%clk
0:01:16.2]} 21. Re1 {[%clk 0:00:38.2]} 21... Be6 {[%clk 0:01:10.5]} 22. Nh6+
{[%clk 0:00:32.5]} 22... Kg7 {[%clk 0:01:10.5]} 23. Rxe6 {[%clk 0:00:31.9]}
23... Nxe6 {[%clk 0:00:56.3]} 24. Qxe6 {[%clk 0:00:21.9]} 24... Rxc1+ {[%clk
0:00:55.5]} 25. Bxc1 {[%clk 0:00:22.8]} 25... Qc7 {[%clk 0:00:50.2]} 26. Bf4
{[%clk 0:00:17.6]} 26... Bxf2+ {[%clk 0:00:39]} 27. Kxf2 {[%clk 0:00:15.9]}
27... Qb6+ {[%clk 0:00:39.6]} 28. Qxb6 {[%clk 0:00:15]} 28... axb6 {[%clk
0:00:40.5]} 29. Ng4 {[%clk 0:00:15.4]} 29... h5 {[%clk 0:00:38.8]} 30. Ne3
{[%clk 0:00:09]} 30... Ra8 {[%clk 0:00:38.3]} 31. Nc4 {[%clk 0:00:07.6]} 31...
b5 {[%clk 0:00:37.8]} 32. Nd6 {[%clk 0:00:07.8]} 32... Rxa3 {[%clk 0:00:37.5]}
33. Nxb5 {[%clk 0:00:08.3]} 33... Rb3 {[%clk 0:00:34.7]} 34. Bd6 {[%clk
0:00:07.9]} 34... g5 {[%clk 0:00:31.1]} 35. h4 {[%clk 0:00:07]} 35... g4 {[%clk
0:00:31]} 36. Nd4 {[%clk 0:00:05]} 36... Rb2+ {[%clk 0:00:30.6]} 37. Ke3 {[%clk
0:00:05.2]} 37... Kg6 {[%clk 0:00:27.5]} 38. Ke4 {[%clk 0:00:05.3]} 38... f5+
{[%clk 0:00:19.9]} 39. Nxf5 {[%clk 0:00:03.5]} 39... Re2+ {[%clk 0:00:20.3]} 40.
Ne3 {[%clk 0:00:03.5]} 40... Kf6 {[%clk 0:00:19.9]} 41. Kd4 {[%clk 0:00:03.5]}
41... Re1 {[%clk 0:00:17.6]} 42. Nc4 {[%clk 0:00:02.4]} 42... Rg1 {[%clk
0:00:16]} 43. Kc5 {[%clk 0:00:02.7]} 43... Ke6 {[%clk 0:00:15.6]} 44. b5 {[%clk
0:00:02.1]} 44... Rc1 {[%clk 0:00:15.9]} 45. Bf4 {[%clk 0:00:01.8]} 45... Kf5
{[%clk 0:00:15.4]} 46. Kd5 {[%clk 0:00:01.1]} 46... Rd1+ {[%clk 0:00:14.9]} 47.
Kc5 {[%clk 0:00:01.7]} 47... Ke4 {[%clk 0:00:15.3]} 48. Nd6+ {[%clk 0:00:02.6]}
48... Kf3 {[%clk 0:00:15.3]} 49. Kb6 {[%clk 0:00:03.5]} 49... Rd4 {[%clk
0:00:10.6]} 50. Kxb7 {[%clk 0:00:04.4]} 50... Rxf4 {[%clk 0:00:10.9]} 51. gxf4
{[%clk 0:00:04.2]} 51... g3 {[%clk 0:00:11.8]} 52. f5 {[%clk 0:00:03.6]} 52...
g2 {[%clk 0:00:12]} 53. f6 {[%clk 0:00:04.5]} 53... g1=Q {[%clk 0:00:12.3]} 54.
f7 {[%clk 0:00:05.4]} 54... Qg7 {[%clk 0:00:11.6]} 55. Kc7 {[%clk 0:00:05.6]}
55... Qf8 {[%clk 0:00:09.7]} 56. b6 {[%clk 0:00:05.9]} 56... Qe7+ {[%clk
0:00:07.9]} 57. Kc6 {[%clk 0:00:06]} 57... Kg4 {[%clk 0:00:06.7]} 58. b7 {[%clk
0:00:06.4]} 58... Kxh4 {[%clk 0:00:05.8]} 59. b8=Q {[%clk 0:00:06.3]} 59... Kh3
{[%clk 0:00:05.5]} 60. f8=Q {[%clk 0:00:06.6]} 60... Qxf8 {[%clk 0:00:05.6]} 61.
Qxf8 {[%clk 0:00:07.5]} 61... h4 {[%clk 0:00:06.5]} 62. Qc8+ {[%clk 0:00:07.1]}
62... Kg3 {[%clk 0:00:06.5]} 63. Qg8+ {[%clk 0:00:06.8]} 63... Kh3 {[%clk
0:00:06.5]} 64. Ne4 {[%clk 0:00:06.2]} 64... Kh2 {[%clk 0:00:06.4]} 65. Qg7
{[%clk 0:00:05.2]} 65... Kh3 {[%clk 0:00:06.1]} 66. Nd2 {[%clk 0:00:05.7]} 66...
Kh2 {[%clk 0:00:05.9]} 67. Nf3+ {[%clk 0:00:05.1]} 67... Kh3 {[%clk 0:00:06.5]}
68. Ne5 {[%clk 0:00:04.1]} 68... Kh2 {[%clk 0:00:07.4]} 69. Nd3 {[%clk
0:00:03.9]} 69... Kh3 {[%clk 0:00:08.2]} 70. Kd5 {[%clk 0:00:03.4]} 70... Kh2
{[%clk 0:00:09.1]} 71. Ke4 {[%clk 0:00:04]} 71... h3 {[%clk 0:00:09.4]} 72. Kf3
{[%clk 0:00:04.4]} 72... Kh1 {[%clk 0:00:10.3]} 73. Kf2 {[%clk 0:00:04.5]} 73...
Kh2 {[%clk 0:00:11.2]} 74. Qg1# {[%clk 0:00:04]} 1-0